bitfinex-derivatives/quotes_ETHF0:USTF0_20240822
["timestamp","ask_amount","ask_price","bid_price","bid_amount"]
[1724298880557,0.00573987,2614.7,2614.4,3.53741]
[1724298880855,0.00573987,2614.7,2614.4,3.308]
[1724298882264,0.00573987,2614.7,2614.4,3.53741]
[1724298882461,0.00573987,2614.7,2614.5,1.2305]
[1724298882764,0.23512987,2614.7,2614.5,1.2305]
[1724298882968,0.00573987,2614.7,2614.5,1.2305]
[1724298885263,0.23512987,2614.7,2614.5,1.2305]
[1724298885649,0.00573987,2614.7,2614.5,1.2305]
[1724298886354,0.00573987,2614.7,2614.5,1.4599]
[1724298887754,3.43716,2615.0,2614.6,3.8248]
[1724298887755,3.2078,2615.0,2614.6,3.8248]
[1724298888065,4.31831,2615.6,2615.1,0.22935]
[1724298888252,0.22932,2615.5,2615.2,1.1766]
[1724298888652,0.22932,2615.4,2615.2,1.1766]
[1724298888860,0.22933,2615.3,2615.2,1.1766]
[1724298889052,0.22933,2615.3,2614.7,0.22938]
[1724298889053,0.57332,2615.4,2614.7,3.308]
[1724298889256,0.22936,2615.0,2614.7,3.308]
[1724298889462,0.22937,2614.9,2614.7,3.308]
[1724298889866,2.99126,2615.3,2614.7,3.308]
[1724298889867,0.22936,2615.0,2614.7,3.308]
[1724298890370,0.22937,2614.9,2614.7,3.308]
[1724298890562,0.22936,2615.0,2614.7,3.308]
[1724298895161,0.22937,2614.9,2614.7,3.308]
[1724298895362,0.22937,2614.9,2614.4,10.37981]
[1724298895666,0.22938,2614.8,2614.4,10.37981]
[1724298896665,0.22939,2614.7,2614.4,10.37981]
[1724298897774,3.2078,2615.3,2614.5,3.8248]
[1724298897976,4.089,2615.4,2615.0,3.308]
[1724298898473,0.22936,2615.0,2614.7,3.308]
[1724298898774,0.22936,2615.0,2614.7,3.53738]
[1724298899072,3.00535,2615.3,2614.7,3.308]
[1724298899468,0.22935,2615.1,2614.7,3.53738]
[1724298900059,0.22935,2615.2,2614.8,0.22937]
[1724298900265,1.45274,2615.3,2614.8,0.22937]
[1724298900463,7.52613,2615.4,2614.7,3.308]
[1724298900672,7.52613,2615.4,2614.9,0.22936]
[1724298900866,7.52613,2615.4,2615.0,1.2811]
[1724298901278,0.22935,2615.2,2615.0,1.2811]
[1724298901573,0.22935,2615.1,2615.0,1.2811]
[1724298901959,0.22935,2615.2,2615.0,1.2811]
[1724298903482,7.52613,2615.4,2615.0,1.2811]
[1724298903667,7.2968,2615.4,2615.0,4.5891]
[1724298903867,0.0048,2615.6,2615.3,0.22933]
[1724298904180,0.0048,2615.6,2615.2,0.22934]
[1724298904380,0.0048,2615.6,2615.1,1.2368]
[1724298904680,0.22932,2615.5,2615.1,1.2368]
[1724298906284,0.23411,2615.6,2615.1,1.46615]
[1724298906772,0.0048,2615.6,2615.2,0.22933]
[1724298907176,0.0048,2615.6,2615.2,0.22934]
[1724298907483,0.0048,2615.6,2615.3,0.22933]
[1724298907778,0.0048,2615.6,2615.4,1.2802]
[1724298907976,0.0048,2615.6,2615.5,1.2425]
[1724298908682,0.0048,2615.6,2615.5,5.0657]
[1724298908886,0.0048,2615.6,2615.5,11.81082]
[1724298909283,0.0036711,2616.4,2615.5,16.5815]
[1724298909485,0.0036711,2616.4,2615.9,3.2078]
[1724298909779,0.0036711,2616.4,2616.2,3.308]
[1724298909975,0.0036711,2616.4,2616.2,3.3107275]
[1724298912478,0.0036711,2616.4,2616.3,1.2755]
[1724298913584,0.00478899,2617.0,2616.3,5.0979]
[1724298913786,0.00478899,2617.0,2616.5,3.2078]
[1724298913979,0.00478899,2617.0,2616.5,3.43702]
[1724298914180,0.00478899,2617.0,2616.5,3.2078]
[1724298914377,0.00478899,2617.0,2616.6,1.42182]
[1724298914573,0.00924157,2617.0,2616.6,1.42182]
[1724298914784,0.00924157,2617.0,2616.6,1.1926]
[1724298915277,0.00924157,2617.0,2616.3,1.2755]
[1724298915278,6.32104157,2617.0,2616.3,1.2755]
[1724298915583,6.32104157,2617.0,2616.2,0.0027275]
[1724298915584,0.22923,2616.5,2616.2,0.0027275]
[1724298915785,0.22924,2616.4,2616.2,0.0027275]
[1724298915991,0.22923,2616.6,2616.2,0.0027275]
[1724298916286,0.22923,2616.5,2616.2,0.0027275]
[1724298916484,0.22924,2616.4,2616.2,0.0027275]
[1724298916687,4.42,2616.4,2616.2,0.0027275]
[1724298917078,3.2078,2616.4,2616.2,0.0027275]
[1724298918889,3.43702,2616.6,2616.2,0.0027275]
[1724298919793,3.2078,2616.6,2616.2,0.0027275]
[1724298919992,3.43702,2616.6,2616.2,0.0027275]
[1724298921902,3.2078,2616.6,2616.2,0.2319775]
[1724298922100,3.2078,2616.6,2616.2,0.0027275]
[1724298923088,3.43702,2616.6,2616.2,0.0027275]
[1724298923683,0.22923,2616.5,2616.2,0.0027275]
[1724298923888,1.2122,2616.8,2616.2,6.7477775]
[1724298924094,0.22922,2616.6,2616.2,6.5185275]
[1724298925095,4.42,2616.8,2616.2,10.3409275]
[1724298925096,3.2078,2616.8,2616.2,10.3409275]
[1724298925290,3.2078,2616.8,2616.3,1.51494]
[1724298925798,1.45113157,2617.0,2616.4,3.53723]
[1724298925990,1.45113157,2617.0,2616.4,4.74923]
[1724298926389,1.45113157,2617.0,2616.4,4.52]
[1724298926390,0.22919,2616.9,2616.4,4.52]
[1724298927197,1.45113157,2617.0,2616.5,3.308]
[1724298927395,0.00924157,2617.0,2616.8,3.308]
[1724298927801,0.00924157,2617.0,2616.6,1.1718]
[1724298928000,1.23464157,2617.0,2616.6,1.1718]
[1724298928299,0.00924157,2617.0,2616.7,3.308]
[1724298928996,0.00924157,2617.0,2616.6,1.1718]
[1724298928997,0.23842157,2617.0,2616.6,1.1718]
[1724298929188,0.00924157,2617.0,2616.6,1.1718]
[1724298929588,0.23842157,2617.0,2616.6,1.1718]
[1724298929784,0.00924157,2617.0,2616.6,1.1718]
[1724298929988,0.00924157,2617.0,2616.7,3.53721]
[1724298930190,0.00924157,2617.0,2616.7,3.308]
[1724298930997,0.00924157,2617.0,2616.6,1.1718]
[1724298930998,3.83084157,2617.0,2616.6,1.1718]
[1724298931204,0.2292,2616.8,2616.6,1.1718]
[1724298931405,2.43664157,2617.0,2616.6,1.1718]
[1724298931602,3.2078,2616.8,2616.3,1.2857]
[1724298931901,0.22922,2616.6,2616.2,0.0027275]
[1724298932197,3.2078,2616.8,2616.2,1.2253275]
[1724298932198,3.43701,2616.8,2616.2,1.2253275]
[1724298933294,0.0048,2616.4,2616.2,1.2253275]
[1724298933700,0.0048,2616.4,2616.2,5.0477275]
[1724298933997,0.0048,2616.4,2616.3,0.22925]
[1724298934193,0.0048,2616.4,2616.2,5.2769775]
[1724298934393,0.0048,2616.4,2616.3,4.05165]
[1724298935605,0.0048,2616.4,2616.3,3.8224]
[1724298936103,0.0048,2616.4,2616.3,4.05165]
[1724298936500,0.0048,2616.4,2616.3,3.8224]
[1724298937205,0.0048,2616.4,2616.3,4.05165]
[1724298937603,0.0048,2616.4,2616.3,3.8224]
[1724298937903,0.0048,2616.4,2616.2,1.2253275]
[1724298938096,0.0048,2616.4,2616.2,5.0477275]
[1724298938296,0.0048,2616.4,2616.2,5.2769775]
[1724298938498,0.0048,2616.4,2616.3,4.05165]
[1724298939506,0.00924157,2617.0,2616.8,0.2292]
[1724298939804,0.00924157,2617.0,2616.9,2.4812]
[1724298940703,0.00924157,2617.0,2616.7,3.53721]
[1724298941006,0.23843157,2617.0,2616.7,4.5096]
[1724298941197,0.00924157,2617.0,2616.6,3.2078]
[1724298941399,1.4432,2616.9,2616.6,3.2078]
[1724298941791,1.214,2616.9,2616.6,3.2078]
[1724298941997,1.214,2616.9,2616.6,3.43702]
[1724298942301,1.214,2616.9,2616.6,3.2078]
[1724298942302,1.44319,2616.9,2616.6,3.2078]
[1724298942510,1.44319,2616.9,2616.7,1.2958]
[1724298942900,1.214,2616.9,2616.7,1.2958]
[1724298943604,0.00924157,2617.0,2616.8,0.2292]
[1724298943802,0.00924157,2617.0,2616.8,1.4157]
[1724298944008,0.00924157,2617.0,2616.9,0.22919]
[1724298944425,0.00924157,2617.0,2616.8,4.6235]
[1724298944712,0.00924157,2617.0,2616.9,0.22919]
[1724298945097,0.00924157,2617.0,2616.8,3.437]
[1724298945299,0.00924157,2617.0,2616.8,0.2292]
[1724298946209,0.0076175,2617.0,2616.9,4.05079]
[1724298946413,13.124,2617.7,2616.9,7.1296]
[1724298946602,15.87782,2617.8,2617.4,3.308]
[1724298946902,15.87782,2617.8,2617.0,0.00573987]
[1724298946903,3.82,2617.7,2617.0,0.00573987]
[1724298947105,2.89,2617.7,2617.0,0.00573987]
[1724298947306,3.2078,2617.6,2617.0,0.00573987]
[1724298947608,0.22917,2617.2,2617.0,0.00573987]
[1724298947803,0.22916,2617.4,2617.0,0.00573987]
[1724298947997,1.2642,2617.3,2617.0,0.00573987]
[1724298948201,0.22917,2617.2,2617.0,0.00573987]
[1724298948398,2.5247,2617.3,2617.0,0.00573987]
[1724298948608,0.00384271,2617.7,2617.2,0.22917]
[1724298948811,1.26434271,2617.7,2617.2,3.308]
[1724298949000,3.80424271,2617.7,2617.3,1.2823]
[1724298949505,1.26434271,2617.7,2617.3,1.2823]
[1724298950510,1.26434271,2617.7,2617.3,1.51146]
[1724298950708,1.26434271,2617.7,2617.3,4.71926]
[1724298950905,0.00384271,2617.7,2617.4,3.53715]
[1724298951311,0.00384271,2617.7,2617.4,3.308]
[1724298951509,0.00384271,2617.7,2617.3,4.4901]
[1724298952514,0.00384271,2617.7,2617.4,3.308]
[1724298952918,1.53097271,2617.7,2617.3,4.4901]
[1724298953104,1.53097271,2617.7,2617.3,1.2823]
[1724298953303,2.56004271,2617.7,2617.3,1.2823]
[1724298953509,2.78917271,2617.7,2617.3,1.2823]
[1724298953710,2.56004271,2617.7,2617.3,1.2823]
[1724298953913,2.78917271,2617.7,2617.3,1.2823]
[1724298954309,0.22913,2617.6,2617.3,1.2823]
[1724298954704,1.2753,2617.5,2617.3,1.2823]
[1724298955312,0.00384271,2617.7,2617.3,8.02725]
[1724298955615,0.00384271,2617.7,2617.4,0.22915]
[1724298955807,0.00384271,2617.7,2617.3,8.02725]
[1724298957818,0.00384271,2617.7,2617.3,7.7981]
[1724298958011,0.00384271,2617.7,2617.3,8.02726]
[1724298958903,0.00384271,2617.7,2617.3,7.7981]
[1724298959408,0.00384271,2617.7,2617.3,8.02725]
[1724298960707,0.00384271,2617.7,2617.3,7.7981]
[1724298960910,0.23297271,2617.7,2617.3,7.7981]
[1724298961315,0.00384271,2617.7,2617.3,8.02725]
[1724298961522,0.00384271,2617.7,2617.4,0.22915]
[1724298962221,0.00384271,2617.7,2617.3,8.02725]
[1724298962524,0.23296271,2617.7,2617.3,7.7981]
[1724298962716,1.54607271,2617.7,2617.3,7.7981]
[1724298963824,1.31694271,2617.7,2617.3,4.4901]
[1724298964019,0.22915,2617.5,2617.1,1.2935]
[1724298964419,1.1984,2617.4,2617.1,1.52267]
[1724298964816,1.1984,2617.4,2617.1,2.5933]
[1724298965026,1.1984,2617.4,2617.1,2.82247]
[1724298965322,1.1984,2617.4,2617.1,2.5933]
[1724298965519,1.1984,2617.4,2617.1,2.82247]
[1724298965715,0.22914,2617.6,2617.2,0.22916]
[1724298965911,2.74447271,2617.7,2617.3,0.22916]
[1724298966113,0.22913,2617.6,2617.2,0.22916]
[1724298966620,0.22914,2617.5,2617.1,4.83067]
[1724298967020,2.51534271,2617.7,2617.1,3.308]
[1724298967223,0.22915,2617.4,2617.0,4.76501987]
[1724298967414,2.51534271,2617.7,2617.0,4.53583987]
[1724298967819,0.22916,2617.3,2617.0,4.53583987]
[1724298968019,1.2973,2617.2,2617.0,4.53583987]
[1724298968214,1.31694271,2617.7,2617.0,4.53583987]
[1724298968430,1.2973,2617.6,2617.0,4.53583987]
[1724298968619,0.22915,2617.4,2617.0,4.76501987]
[1724298968935,0.22916,2617.3,2617.0,4.53583987]
[1724298969119,0.22915,2617.4,2617.0,4.76501987]
[1724298969320,0.22916,2617.3,2617.0,4.53583987]
[1724298969626,1.2973,2617.6,2617.0,4.53583987]
[1724298969833,1.52643,2617.6,2617.2,0.22916]
[1724298970521,1.52643,2617.6,2617.3,0.22916]
[1724298970718,1.52643,2617.6,2617.2,0.22916]
[1724298972227,0.22915,2617.4,2617.1,4.568]
[1724298972533,0.22918,2617.1,2617.0,1.32803987]
[1724298972733,0.22918,2617.1,2617.0,0.00573987]
[1724298972928,4.04998,2617.1,2617.0,0.00573987]
[1724298973226,6.46698,2617.1,2617.0,0.00573987]
[1724298974643,5.03739076,2617.1,2616.6,3.43701]
[1724298974935,5.03739076,2617.1,2616.7,1.2877]
[1724298974936,2.4659,2617.1,2616.7,1.2877]
[1724298975140,0.57305,2616.7,2616.2,0.0027275]
[1724298975335,0.22925,2616.3,2616.2,0.0027275]
[1724298975531,3.2078,2616.5,2616.2,0.0027275]
[1724298975735,3.79353987,2616.6,2616.2,0.0027275]
[1724298975936,4.02275987,2616.6,2616.2,0.0027275]
[1724298976136,3.79353987,2616.6,2616.2,0.0027275]
[1724298976349,0.02110715,2616.5,2616.2,0.0027275]
[1724298977145,1.29413987,2616.6,2616.2,0.0027275]
[1724298977338,0.02110296,2616.5,2616.2,0.0027275]
[1724298977644,1.29413987,2616.6,2616.2,0.0027275]
[1724298978144,1.52335987,2616.6,2616.2,0.0027275]
[1724298978445,0.02110388,2616.5,2616.2,0.0027275]
[1724298979440,1.29413987,2616.6,2616.2,0.0027275]
[1724298979646,0.25033303,2616.5,2616.2,0.0027275]
[1724298979838,0.02110303,2616.4,2616.2,0.0027275]
[1724298980438,3.83433987,2616.6,2616.2,0.0027275]
[1724298980640,2.58383987,2616.6,2616.2,0.0027275]
[1724298980949,0.02110327,2616.5,2616.2,0.0027275]
[1724298981834,2.81305987,2616.6,2616.2,0.0027275]
[1724298982043,0.02110618,2616.5,2616.2,0.0027275]
[1724298982348,0.25033618,2616.5,2616.2,0.0027275]
[1724298982551,0.02110618,2616.4,2616.2,0.0027275]
[1724298983142,0.22924,2616.4,2616.2,0.0027275]
[1724298983347,0.22925,2616.3,2616.2,0.0027275]
[1724298983552,0.25036045,2616.3,2616.2,0.0027275]
[1724298983740,4.07276045,2616.3,2616.2,0.0027275]
[1724298984137,9.05165,2616.3,2616.2,0.0027275]
[1724298984837,9.05165,2616.3,2616.1,0.00573987]
[1724298984838,0.22925,2616.2,2616.1,0.00573987]
[1724298985148,7.25945,2616.2,2616.1,0.00573987]
[1724298985451,0.22929,2615.8,2615.4,4.6612]
[1724298985648,4.1533,2616.1,2615.4,1.4534]
[1724298985955,0.2293,2615.7,2615.4,1.45757285]
[1724298986149,1.60721,2615.6,2615.4,1.45757285]
[1724298986344,1.3779,2615.6,2615.4,1.45757285]
[1724298988754,1.60721,2615.6,2615.4,1.45757285]
[1724298988951,1.3779,2615.6,2615.4,1.45757285]
[1724298991150,0.2293,2615.7,2615.4,1.45757285]
[1724298991151,3.2078,2615.9,2615.4,8.48857285]
[1724298991346,3.2078,2615.9,2615.4,4.66537285]
[1724298991547,3.2078,2615.9,2615.6,0.2293]
[1724298991849,0.2326945,2616.1,2615.7,1.3508]
[1724298992049,0.2326945,2616.1,2615.7,2.741]
[1724298992954,0.2326945,2616.1,2615.7,2.9703]
[1724298992955,0.0034345,2616.1,2615.7,2.9703]
[1724298993257,0.2326945,2616.1,2615.7,2.741]
[1724298995459,0.2326945,2616.1,2615.7,6.1781]
[1724298995460,0.0034345,2616.1,2615.7,6.1781]
[1724298995770,0.0034345,2616.1,2615.8,0.22929]
[1724298996060,0.0034345,2616.1,2615.9,1.3691]
[1724298996664,0.0034345,2616.1,2616.0,3.8224]
[1724298996665,13.1274345,2616.1,2616.0,3.8224]
[1724298996959,0.00573987,2616.6,2616.0,3.8224]
[1724298996960,0.00573987,2616.6,2616.4,0.22923]
[1724298997356,0.00573987,2616.6,2616.5,3.8216]
[1724298997759,0.01069047,2616.6,2616.5,3.8216]
[1724298999061,0.01069047,2616.6,2616.5,4.05083]
[1724298999950,6.40369047,2616.6,2616.5,4.05083]
[1724299001167,6.40369047,2616.6,2616.5,12.35883]
[1724299001467,1.924,2616.6,2616.5,13.12018964]
[1724299001663,1.4237,2617.4,2617.1,0.22917]
[1724299001859,1.4237,2617.4,2617.0,0.22918]
[1724299002160,1.65285,2617.4,2617.0,0.22918]
[1724299002561,1.65677968,2617.4,2617.0,0.22918]
[1724299003364,0.22916,2617.3,2617.0,0.22918]
[1724299003568,1.65677968,2617.4,2617.0,0.22918]
[1724299003964,0.00392968,2617.4,2617.3,0.22916]
[1724299004160,0.00392968,2617.4,2617.3,0.2331483]
[1724299004363,0.00392968,2617.4,2617.3,5.4938483]
[1724299006656,0.00392968,2617.4,2617.3,5.2646883]
[1724299006961,0.23307968,2617.4,2617.3,0.0039883]
[1724299007168,2.84492968,2617.4,2617.3,0.0039883]
[1724299007356,3.07407968,2617.4,2617.3,0.0039883]
[1724299008870,2.84492968,2617.4,2617.3,0.0039883]
[1724299009765,3.07407968,2617.4,2617.3,0.0039883]
[1724299010070,6.89487968,2617.4,2617.3,0.0039883]
[1724299010456,6.89967968,2617.4,2617.3,0.0039883]
[1724299011573,0.22918,2617.1,2616.9,3.31373987]
[1724299011871,2.84972968,2617.4,2616.9,3.31373987]
[1724299012256,0.22916,2617.3,2616.9,3.54292987]
[1724299012682,0.22916,2617.3,2616.9,3.54636557]
[1724299012971,2.84972968,2617.4,2616.9,3.31717557]
[1724299013173,2.84972968,2617.4,2616.9,4.77227557]
[1724299013363,2.84972968,2617.4,2617.1,3.53717]
[1724299013569,2.84972968,2617.4,2617.1,3.308]
[1724299013766,2.84972968,2617.4,2617.2,0.22916]
[1724299013975,2.84972968,2617.4,2617.3,0.22916]
[1724299014674,2.84972968,2617.4,2617.1,6.5158]
[1724299014675,2.84972968,2617.4,2617.2,0.22916]
[1724299014872,1.3851,2617.3,2617.2,0.22916]
[1724299015271,1.3851,2617.3,2617.2,4.04996]
[1724299015773,3.2078,2618.7,2617.3,3.8208]
[1724299015981,3.2078,2619.7,2618.6,6.5158]
[1724299016282,3.2078,2619.7,2618.2,3.308]
[1724299016283,0.22898,2619.4,2618.9,6.5158]
[1724299016477,1.61276,2619.6,2618.9,6.74481]
[1724299016863,3.2078,2619.4,2619.0,0.00572869]
[1724299017071,0.229,2619.2,2619.0,0.00572869]
[1724299017282,7.25438,2619.4,2619.0,0.00572869]
[1724299017977,3.8176,2619.3,2619.0,0.00572869]
[1724299018277,3.8176,2619.3,2618.9,0.00375193]
[1724299018278,3.2078,2619.1,2618.3,3.308]
[1724299018571,0.22903,2618.8,2618.3,3.308]
[1724299018774,1.3838,2618.7,2618.3,3.308]
[1724299018977,1.61284,2618.7,2618.3,3.308]
[1724299019173,1.3838,2618.7,2618.3,3.31246292]
[1724299019375,1.61283,2618.7,2618.3,3.31246292]
[1724299019571,1.3838,2618.7,2618.3,3.31246292]
[1724299019765,1.61284,2618.7,2618.3,3.31246292]
[1724299020181,0.22904,2618.6,2618.3,3.31246292]
[1724299020376,1.3838,2618.7,2618.3,3.31246292]
[1724299020688,0.22905,2618.6,2618.3,3.31246292]
[1724299020870,1.61284,2618.7,2618.3,3.31246292]
[1724299021175,0.22904,2618.6,2618.3,3.31246292]
[1724299021391,1.62704,2618.6,2618.3,3.31246292]
[1724299021882,1.398,2618.6,2618.3,3.31246292]
[1724299023376,1.398,2618.6,2618.4,3.2078]
[1724299024290,1.398,2618.6,2618.3,3.31246292]
[1724299024870,1.3838,2618.7,2618.3,3.31246292]
[1724299025070,1.61284,2618.7,2618.3,3.31246292]
[1724299025378,1.3838,2618.7,2618.3,3.31246292]
[1724299026080,0.22905,2618.6,2618.3,3.31246292]
[1724299026671,0.22905,2618.5,2618.3,3.31246292]
[1724299026876,1.3838,2618.7,2618.3,3.31246292]
[1724299027176,0.22906,2618.5,2618.3,3.31246292]
[1724299027870,1.4651,2618.4,2618.3,3.31246292]
[1724299030888,1.69416,2618.4,2618.3,3.31246292]
[1724299031078,1.4651,2618.4,2618.3,3.31246292]
[1724299031781,1.69416,2618.4,2618.3,3.31246292]
[1724299032384,5.51336,2618.4,2618.3,0.00446292]
[1724299032584,3.8192,2618.3,2617.5,3.308]
[1724299032789,0.22912,2617.8,2617.5,3.308]
[1724299033092,0.22911,2617.8,2617.4,0.22915]
[1724299033395,0.22911,2617.9,2617.4,0.22915]
[1724299033585,0.22911,2617.9,2617.5,0.22914]
[1724299034188,1.3574,2618.1,2617.4,3.3184251]
[1724299034384,1.3574,2618.1,2617.4,3.5475751]
[1724299034385,1.65941,2617.8,2617.4,3.5475751]
[1724299035089,4.6381,2617.8,2617.4,0.0104251]
[1724299035291,0.22914,2617.5,2617.4,0.0104251]
[1724299035483,0.23397377,2617.5,2617.4,0.0104251]
[1724299035684,4.05477377,2617.5,2617.4,0.0104251]
[1724299035883,7.26257377,2617.5,2617.4,0.0104251]
[1724299037383,0.22917,2617.2,2617.0,3.2078]
[1724299037590,12.60629377,2617.5,2617.0,3.2078]
[1724299037591,1.4021,2617.1,2617.0,3.2078]
[1724299038380,1.4021,2617.1,2617.0,3.21255498]
[1724299039985,0.00572869,2617.3,2617.0,3.21255498]
[1724299040997,0.00572869,2617.3,2617.0,3.44173498]
[1724299041493,0.00572869,2617.3,2617.0,3.21255498]
[1724299042085,0.00572869,2617.3,2617.1,0.22917]
[1724299042282,0.00572869,2617.3,2617.2,3.53717]
[1724299042583,0.00572869,2617.3,2617.2,3.308]
[1724299043488,0.23488869,2617.3,2617.0,3.21255498]
[1724299043698,0.00572869,2617.3,2617.0,3.21255498]
[1724299044498,0.23488869,2617.3,2617.0,3.21255498]
[1724299044793,0.00572869,2617.3,2617.0,3.21255498]
[1724299045298,0.00572869,2617.3,2617.0,3.44173498]
[1724299045796,0.00572869,2617.3,2617.0,3.21255498]
[1724299046196,0.00572869,2617.3,2617.1,0.22917]
[1724299046499,0.00572869,2617.3,2617.0,3.44173498]
[1724299046686,0.00572869,2617.3,2617.0,3.21255498]
[1724299046885,0.0048,2617.1,2617.0,3.44173498]
[1724299047099,0.0048,2617.1,2617.0,3.21255498]
[1724299047301,0.0048,2617.1,2617.0,7.03335498]
[1724299047602,0.0048,2617.1,2617.0,3.21255498]
[1724299047801,0.23397,2617.1,2617.0,3.21255498]
[1724299049396,0.23397,2617.1,2617.0,0.00475498]
[1724299051193,0.0048,2617.1,2617.0,0.00475498]
[1724299053407,0.0048,2617.1,2617.0,3.82555498]
[1724299053892,0.0048,2617.1,2617.0,0.00475498]
[1724299054598,0.23397,2617.1,2617.0,0.00475498]
[1724299054794,0.0048,2617.1,2617.0,0.00475498]
[1724299055000,0.23397,2617.1,2617.0,0.00475498]
[1724299056897,0.0048,2617.1,2616.8,0.00572869]
[1724299057096,0.0048,2617.1,2615.8,0.22929]
[1724299057097,0.22926,2616.2,2615.8,0.22929]
[1724299057296,0.22926,2616.2,2615.7,4.7502]
[1724299057297,3.2078,2616.5,2616.3,0.22924]
[1724299057705,1.3701,2617.0,2616.6,0.22921]
[1724299057897,1.3701,2617.0,2616.7,1.4422]
[1724299058094,0.23398,2617.1,2616.7,1.67141]
[1724299058798,0.23398,2617.1,2616.7,1.4422]
[1724299059000,0.22919,2617.0,2616.7,1.4422]
[1724299059302,0.0048,2617.1,2616.7,1.4422]
[1724299059503,0.23398,2617.1,2616.7,1.4422]
[1724299060011,0.22918,2617.0,2616.7,1.4422]
[1724299060699,0.22919,2616.9,2616.7,1.4422]
[1724299060900,0.22919,2616.9,2616.6,0.23845784]
[1724299061206,1.4321,2617.1,2616.6,0.00923784]
[1724299061506,0.22921,2616.8,2616.6,0.00923784]
[1724299062203,0.22921,2616.7,2616.6,0.00923784]
[1724299063107,4.05081,2616.7,2616.6,0.00923784]
[1724299065105,5.41631,2616.7,2616.6,0.00923784]
[1724299066910,10.41631,2616.7,2616.6,0.00572869]
[1724299067113,0.22926,2616.1,2615.6,0.2293]
[1724299067415,1.4729,2616.0,2615.5,4.0886]
[1724299067712,1.4729,2616.0,2615.8,0.22928]
[1724299068221,1.4729,2616.0,2615.8,0.23252944]
[1724299068599,4.089,2616.6,2615.9,7.0302]
[1724299068913,5.4732,2616.6,2616.1,0.22926]
[1724299069209,5.70242,2616.6,2616.1,0.22926]
[1724299069414,5.4732,2616.6,2615.8,0.00324944]
[1724299069601,5.4732,2616.6,2615.6,0.00572869]
[1724299069602,3.2078,2616.2,2615.6,0.00572869]
[1724299069805,1.3842,2616.1,2615.6,0.00572869]
[1724299070106,0.22929,2615.9,2615.6,0.00572869]
[1724299070300,0.22928,2616.0,2615.6,0.00572869]
[1724299070515,2.7936,2616.1,2615.7,0.22929]
[1724299071312,2.7936,2616.1,2615.9,0.22928]
[1724299071514,1.3842,2616.1,2615.9,0.22928]
[1724299072505,3.2078,2616.0,2615.6,0.01014255]
[1724299072801,4.5979,2616.0,2615.6,0.23944255]
[1724299073002,4.5979,2616.0,2615.7,0.22929]
[1724299073512,4.5979,2616.0,2615.7,0.2293]
[1724299073709,4.5979,2616.0,2615.8,0.22928]
[1724299074621,4.5979,2616.0,2615.6,0.01014255]
[1724299074622,1.3842,2616.1,2615.9,0.22928]
[1724299074919,1.61347,2616.1,2615.6,0.01014255]
[1724299075116,3.04827,2616.1,2615.7,0.22929]
[1724299076719,0.22927,2616.0,2615.7,0.22929]
[1724299078820,3.04827,2616.1,2615.8,0.22929]
[1724299079116,1.4887,2616.2,2615.8,3.2078]
[1724299079312,1.4887,2616.2,2615.9,0.22928]
[1724299080020,1.4887,2616.2,2615.6,0.01014255]
[1724299080210,0.22927,2616.1,2615.7,0.22929]
[1724299080716,0.22928,2615.9,2615.6,0.23944255]
[1724299080922,0.22928,2616.0,2615.6,0.23944255]
[1724299081121,1.4909,2615.9,2615.6,0.01014255]
[1724299081323,2.9058,2615.9,2615.6,0.01014255]
[1724299081817,2.9058,2615.9,2615.6,0.23944255]
[1724299082206,2.9058,2615.9,2615.7,0.2293]
[1724299084108,0.0048,2616.0,2615.9,0.22928]
[1724299086019,0.0048,2616.0,2615.9,4.05168]
[1724299087619,0.0048,2616.0,2615.9,5.40018]
[1724299088728,0.0048,2616.0,2615.9,4.05168]
[1724299089732,0.0048,2616.0,2615.9,12.93292]
[1724299089733,1e-08,2616.0,2615.9,12.93292]
[1724299090025,1e-08,2616.0,2615.9,14.38702]
[1724299090412,1.4693,2616.5,2616.4,0.22925]
[1724299090819,1.4338,2616.9,2616.6,0.22922]
[1724299091125,1.4223,2616.8,2616.6,0.22922]
[1724299091722,1.4223,2616.8,2616.4,0.22924]
[1724299092625,1.65152,2616.8,2616.3,0.22925]
[1724299092817,1.4223,2616.8,2616.4,0.22925]
[1724299094617,1.4223,2616.8,2616.5,0.22924]
[1724299094819,1.4223,2616.8,2616.4,0.22925]
[1724299095131,1.4223,2616.8,2616.5,0.22924]
[1724299096934,1.4223,2616.8,2616.4,0.22925]
[1724299097132,0.22923,2616.7,2616.0,1.4586]
[1724299097326,1.4587,2616.6,2616.0,1.4586]
[1724299097636,1.4587,2616.6,2616.2,0.22927]
[1724299097637,1.68794,2616.6,2616.2,0.22927]
[1724299098321,1.4587,2616.6,2615.9,7.62309]
[1724299098517,0.22926,2616.4,2615.9,7.62309]
[1724299098732,1.4297,2616.3,2616.0,0.22929]
[1724299098932,2.825,2616.3,2616.0,0.22929]
[1724299101725,2.825,2616.3,2615.9,3.5123208]
[1724299101925,2.825,2616.3,2616.2,0.22927]
[1724299102127,1.4587,2616.6,2616.4,0.22925]
[1724299102427,4.151,2616.6,2616.0,4.6529]
[1724299102634,4.151,2616.6,2616.4,0.22925]
[1724299103330,4.151,2616.6,2616.0,4.6529]
[1724299103331,4.151,2616.6,2616.3,0.22926]
[1724299103735,4.151,2616.6,2616.4,0.22925]
[1724299105828,4.151,2616.6,2616.5,0.22925]
[1724299106941,4.151,2616.6,2616.4,0.22925]
[1724299108942,4.151,2616.6,2616.3,0.22926]
[1724299109141,4.151,2616.6,2616.4,0.22925]
[1724299109349,4.151,2616.6,2616.3,0.22926]
[1724299110045,4.151,2616.6,2616.0,3.61251731]
[1724299110748,4.151,2616.6,2616.4,0.22925]
[1724299111141,0.22925,2616.5,2616.2,0.22927]
[1724299112447,0.22926,2616.4,2616.1,0.22928]
[1724299112946,0.22926,2616.4,2616.2,0.22927]
[1724299113452,0.22926,2616.4,2616.1,0.22928]